[Event "Early-Titled-Tuesday-Blitz-November-28-2023"]
[Site "Chess.com"]
[Date "2023.11.28"]
[Round "4"]
[White "SchmakAttack"]
[Black "Oleksandr_Bortnyk"]
[Result "0-1"]
[WhiteElo "2754"]
[BlackElo "3060"]
[TimeControl "180+1"]
[EndTime "8:44:33 PST"]
[Termination "Oleksandr_Bortnyk won on time"]

1. Nf3 {[%clk 0:03:00.9]} 1... Nf6 {[%clk 0:02:56.7]} 2. b3 {[%clk 0:02:59.2]}
2... d5 {[%clk 0:02:55.6]} 3. Bb2 {[%clk 0:02:59.1]} 3... Bf5 {[%clk 0:02:55.9]}
4. g3 {[%clk 0:02:57.5]} 4... e6 {[%clk 0:02:56.1]} 5. Bg2 {[%clk 0:02:57.9]}
5... h6 {[%clk 0:02:53.6]} 6. O-O {[%clk 0:02:57.9]} 6... Be7 {[%clk 0:02:53.6]}
7. d3 {[%clk 0:02:57.9]} 7... O-O {[%clk 0:02:52.7]} 8. Nbd2 {[%clk 0:02:58.1]}
8... Bh7 {[%clk 0:02:52.7]} 9. c4 {[%clk 0:02:55.6]} 9... c6 {[%clk 0:02:52.7]}
10. a3 {[%clk 0:02:47.5]} 10... a5 {[%clk 0:02:52.5]} 11. Re1 {[%clk 0:02:45.7]}
11... Na6 {[%clk 0:02:51.3]} 12. Ne5 {[%clk 0:02:44.7]} 12... Nd7 {[%clk
0:02:48.1]} 13. Nxd7 {[%clk 0:02:29.9]} 13... Qxd7 {[%clk 0:02:49]} 14. d4
{[%clk 0:02:29.2]} 14... b5 {[%clk 0:02:43]} 15. e4 {[%clk 0:02:25.6]} 15...
bxc4 {[%clk 0:02:10.3]} 16. bxc4 {[%clk 0:02:26.5]} 16... Rfb8 {[%clk
0:02:10.3]} 17. Bc3 {[%clk 0:02:08]} 17... a4 {[%clk 0:02:09.2]} 18. Qxa4 {[%clk
0:01:43.2]} 18... Nc5 {[%clk 0:01:41.8]} 19. Qc2 {[%clk 0:01:35.1]} 19... Nxe4
{[%clk 0:01:35.4]} 20. Nxe4 {[%clk 0:01:30.2]} 20... dxe4 {[%clk 0:01:36.3]} 21.
Bxe4 {[%clk 0:01:29.1]} 21... Bxe4 {[%clk 0:01:37.2]} 22. Qxe4 {[%clk
0:01:08.8]} 22... Bxa3 {[%clk 0:01:37.2]} 23. h4 {[%clk 0:00:36.4]} 23... Ra4
{[%clk 0:01:28]} 24. Qd3 {[%clk 0:00:31]} 24... Rba8 {[%clk 0:01:03.6]} 25. Rab1
{[%clk 0:00:29.2]} 25... Be7 {[%clk 0:00:59.3]} 26. h5 {[%clk 0:00:20.8]} 26...
Bf6 {[%clk 0:00:58.1]} 27. Red1 {[%clk 0:00:17]} 27... Ra3 {[%clk 0:00:54.6]}
28. Qc2 {[%clk 0:00:17.1]} 28... Qc7 {[%clk 0:00:51.9]} 29. Bb4 {[%clk
0:00:15.3]} 29... Ra2 {[%clk 0:00:51.7]} 30. Qe4 {[%clk 0:00:14.3]} 30... Bg5
{[%clk 0:00:40]} 31. d5 {[%clk 0:00:13.7]} 31... cxd5 {[%clk 0:00:35]} 32. cxd5
{[%clk 0:00:14.6]} 32... exd5 {[%clk 0:00:19.2]} 33. Rxd5 {[%clk 0:00:15.2]}
33... Qc2 {[%clk 0:00:17]} 34. Qxc2 {[%clk 0:00:14.3]} 34... Rxc2 {[%clk
0:00:17.9]} 35. Rbd1 {[%clk 0:00:09.9]} 35... Rac8 {[%clk 0:00:10.8]} 36. Bd2
{[%clk 0:00:07.1]} 36... Bf6 {[%clk 0:00:09]} 37. Be3 {[%clk 0:00:06.8]} 37...
R8c4 {[%clk 0:00:07.2]} 38. Kg2 {[%clk 0:00:07]} 38... Re4 {[%clk 0:00:07.1]}
39. Kf3 {[%clk 0:00:06.9]} 39... Re6 {[%clk 0:00:06.5]} 40. Rb5 {[%clk
0:00:06.4]} 40... Re7 {[%clk 0:00:03.8]} 41. Rb8+ {[%clk 0:00:03.1]} 41... Kh7
{[%clk 0:00:04.4]} 42. Rb5 {[%clk 0:00:03.3]} 42... Rec7 {[%clk 0:00:03.3]} 43.
Rbd5 {[%clk 0:00:02.2]} 43... Re7 {[%clk 0:00:02.9]} 44. Rd7 {[%clk 0:00:02.3]}
44... Rc7 {[%clk 0:00:03.3]} 45. Rxc7 {[%clk 0:00:02.5]} 45... Rxc7 {[%clk
0:00:03.5]} 46. Rd5 {[%clk 0:00:03.4]} 46... Rb7 {[%clk 0:00:03.5]} 47. Bf4
{[%clk 0:00:03.7]} 47... Be7 {[%clk 0:00:03.7]} 48. Be3 {[%clk 0:00:03.9]} 48...
Kg8 {[%clk 0:00:03]} 49. g4 {[%clk 0:00:04.3]} 49... f6 {[%clk 0:00:03.5]} 50.
Ke4 {[%clk 0:00:04.6]} 50... Kf7 {[%clk 0:00:04.2]} 51. f3 {[%clk 0:00:04.7]}
51... Ke6 {[%clk 0:00:04.4]} 52. Rd4 {[%clk 0:00:04.9]} 52... Bd6 {[%clk
0:00:04.3]} 53. Rc4 {[%clk 0:00:04.9]} 53... Rb5 {[%clk 0:00:03.5]} 54. Bf4
{[%clk 0:00:04.9]} 54... Bxf4 {[%clk 0:00:03.1]} 55. Kxf4 {[%clk 0:00:05.8]}
55... Rb6 {[%clk 0:00:03.9]} 56. Re4+ {[%clk 0:00:05.8]} 56... Kf7 {[%clk
0:00:04.1]} 57. Ra4 {[%clk 0:00:06.4]} 57... Rb7 {[%clk 0:00:04.5]} 58. Rd4
{[%clk 0:00:06.7]} 58... g6 {[%clk 0:00:04.7]} 59. hxg6+ {[%clk 0:00:06.8]}
59... Kxg6 {[%clk 0:00:05.6]} 60. Rc4 {[%clk 0:00:07.1]} 60... Rb3 {[%clk
0:00:05.1]} 61. Rc8 {[%clk 0:00:07.1]} 61... Rb4+ {[%clk 0:00:05.4]} 62. Kg3
{[%clk 0:00:07.5]} 62... Ra4 {[%clk 0:00:05.7]} 63. f4 {[%clk 0:00:07]} 63...
Ra3+ {[%clk 0:00:04.9]} 64. Kh4 {[%clk 0:00:07.3]} 64... Ra1 {[%clk 0:00:05.1]}
65. Rc7 {[%clk 0:00:07.4]} 65... Rh1+ {[%clk 0:00:04.6]} 66. Kg3 {[%clk
0:00:08]} 66... h5 {[%clk 0:00:05.1]} 67. gxh5+ {[%clk 0:00:08]} 67... Rxh5
{[%clk 0:00:05.6]} 68. Rc8 {[%clk 0:00:08]} 68... Ra5 {[%clk 0:00:05.6]} 69. Rh8
{[%clk 0:00:06.1]} 69... Ra1 {[%clk 0:00:05.2]} 70. Kg4 {[%clk 0:00:05.9]} 70...
Rg1+ {[%clk 0:00:05.2]} 71. Kf3 {[%clk 0:00:06.5]} 71... Ra1 {[%clk 0:00:04.6]}
72. Kg4 {[%clk 0:00:06.7]} 72... Ra3 {[%clk 0:00:05.1]} 73. Rg8+ {[%clk
0:00:06.1]} 73... Kf7 {[%clk 0:00:05]} 74. Rb8 {[%clk 0:00:07]} 74... Ra5 {[%clk
0:00:05]} 75. Rb7+ {[%clk 0:00:07.1]} 75... Kg6 {[%clk 0:00:05.4]} 76. Rb8
{[%clk 0:00:06]} 76... Rc5 {[%clk 0:00:05.7]} 77. Rd8 {[%clk 0:00:06]} 77... Rc1
{[%clk 0:00:05]} 78. f5+ {[%clk 0:00:05.6]} 78... Kg7 {[%clk 0:00:04.3]} 79.
Rd7+ {[%clk 0:00:05.9]} 79... Kh6 {[%clk 0:00:04.9]} 80. Kf4 {[%clk 0:00:04]}
80... Rc4+ {[%clk 0:00:04.9]} 81. Ke3 {[%clk 0:00:03.7]} 81... Kg5 {[%clk
0:00:05.8]} 82. Rd5 {[%clk 0:00:03.9]} 82... Rf4 {[%clk 0:00:04.9]} 83. Rc5
{[%clk 0:00:03.8]} 83... Rf1 {[%clk 0:00:05.2]} 84. Ke2 {[%clk 0:00:03.9]} 84...
Ra1 {[%clk 0:00:04.8]} 85. Kf3 {[%clk 0:00:04]} 85... Ra3+ {[%clk 0:00:05.1]}
86. Kf2 {[%clk 0:00:04.4]} 86... Kg4 {[%clk 0:00:05.6]} 87. Ke2 {[%clk
0:00:04.2]} 87... Ra4 {[%clk 0:00:05.3]} 88. Kf2 {[%clk 0:00:04.1]} 88... Rf4+
{[%clk 0:00:05.5]} 89. Kg2 {[%clk 0:00:04.6]} 89... Re4 {[%clk 0:00:04.2]} 90.
Kf2 {[%clk 0:00:05]} 90... Re7 {[%clk 0:00:04.3]} 91. Kg2 {[%clk 0:00:05]} 91...
Re2+ {[%clk 0:00:04.4]} 92. Kf1 {[%clk 0:00:05.1]} 92... Ra2 {[%clk 0:00:05.1]}
93. Rb5 {[%clk 0:00:04.7]} 93... Kf3 {[%clk 0:00:04.8]} 94. Rb3+ {[%clk
0:00:04.8]} 94... Ke4 {[%clk 0:00:05.5]} 95. Rb5 {[%clk 0:00:05.2]} 95... Rc2
{[%clk 0:00:05.6]} 96. Ra5 {[%clk 0:00:04.9]} 96... Rb2 {[%clk 0:00:06.2]} 97.
Rc5 {[%clk 0:00:04.8]} 97... Ke3 {[%clk 0:00:06]} 98. Rc3+ {[%clk 0:00:03.8]}
98... Kd4 {[%clk 0:00:06.6]} 99. Ra3 {[%clk 0:00:04]} 99... Ke4 {[%clk
0:00:06.9]} 100. Ra5 {[%clk 0:00:04.2]} 100... Kf3 {[%clk 0:00:06.6]} 101. Ra3+
{[%clk 0:00:04.2]} 101... Kg4 {[%clk 0:00:07.1]} 102. Ra5 {[%clk 0:00:04.7]}
102... Rc2 {[%clk 0:00:07.7]} 103. Rb5 {[%clk 0:00:04.6]} 103... Rh2 {[%clk
0:00:07.9]} 104. Ra5 {[%clk 0:00:04.7]} 104... Rh5 {[%clk 0:00:08.4]} 105. Ke2
{[%clk 0:00:04.1]} 105... Rh1 {[%clk 0:00:08]} 106. Rb5 {[%clk 0:00:03.8]}
106... Ra1 {[%clk 0:00:07.7]} 107. Rc5 {[%clk 0:00:03.9]} 107... Ra4 {[%clk
0:00:07.6]} 108. Rb5 {[%clk 0:00:04]} 108... Re4+ {[%clk 0:00:07.6]} 109. Kf2
{[%clk 0:00:04.3]} 109... Rf4+ {[%clk 0:00:07.4]} 110. Ke2 {[%clk 0:00:04.5]}
110... Rc4 {[%clk 0:00:06.4]} 111. Ra5 {[%clk 0:00:04.7]} 111... Rc3 {[%clk
0:00:06.7]} 112. Rb5 {[%clk 0:00:04.6]} 112... Kf4 {[%clk 0:00:07.1]} 113. Ra5
{[%clk 0:00:04.8]} 113... Rc2+ {[%clk 0:00:07.6]} 114. Ke1 {[%clk 0:00:04.3]}
114... Rb2 {[%clk 0:00:07.9]} 115. Rc5 {[%clk 0:00:04.1]} 115... Ke3 {[%clk
0:00:08.2]} 116. Rc3+ {[%clk 0:00:03.9]} 116... Kd4 {[%clk 0:00:08.8]} 117. Ra3
{[%clk 0:00:03.6]} 117... Rb5 {[%clk 0:00:09.5]} 118. Rf3 {[%clk 0:00:03.5]}
118... Ke4 {[%clk 0:00:09.7]} 119. Rh3 {[%clk 0:00:03.9]} 119... Rxf5 {[%clk
0:00:08.8]} 120. Ke2 {[%clk 0:00:04.4]} 120... Ra5 {[%clk 0:00:08.1]} 121. Rh4+
{[%clk 0:00:04.9]} 121... Ke5 {[%clk 0:00:08.6]} 122. Rb4 {[%clk 0:00:05]}
122... Ra2+ {[%clk 0:00:07.9]} 123. Kf3 {[%clk 0:00:05.1]} 123... Ra3+ {[%clk
0:00:08.6]} 124. Kf2 {[%clk 0:00:05.6]} 124... Kf5 {[%clk 0:00:09.3]} 125. Rc4
{[%clk 0:00:05.7]} 125... Kg5 {[%clk 0:00:09.7]} 126. Rb4 {[%clk 0:00:05.1]}
126... Ra8 {[%clk 0:00:05.9]} 127. Rc4 {[%clk 0:00:05.3]} 127... Re8 {[%clk
0:00:06]} 128. Kf3 {[%clk 0:00:05.2]} 128... Re5 {[%clk 0:00:06.2]} 129. Rg4+
{[%clk 0:00:05]} 129... Kf5 {[%clk 0:00:06]} 130. Rf4+ {[%clk 0:00:05.6]} 130...
Kg6 {[%clk 0:00:06.7]} 131. Ra4 {[%clk 0:00:06.5]} 131... Rh5 {[%clk 0:00:06.5]}
132. Kg3 {[%clk 0:00:06.3]} 132... Rg5+ {[%clk 0:00:05.6]} 133. Kf3 {[%clk
0:00:06.7]} 133... Rb5 {[%clk 0:00:03.7]} 134. Rc4 {[%clk 0:00:06.3]} 134...
Rb3+ {[%clk 0:00:03]} 135. Kf4 {[%clk 0:00:05.6]} 135... Rb1 {[%clk 0:00:02.9]}
136. Kf3 {[%clk 0:00:05.5]} 136... Kg5 {[%clk 0:00:02.9]} 137. Ra4 {[%clk
0:00:05.1]} 137... f5 {[%clk 0:00:03.1]} 138. Rc4 {[%clk 0:00:04.6]} 138... Rb3+
{[%clk 0:00:03.3]} 139. Kf2 {[%clk 0:00:04.4]} 139... Ra3 {[%clk 0:00:04.1]}
140. Rb4 {[%clk 0:00:03.7]} 140... Kf6 {[%clk 0:00:03.7]} 141. Rc4 {[%clk
0:00:03.7]} 141... Ke5 {[%clk 0:00:04.4]} 142. Rb4 {[%clk 0:00:04.1]} 142... Rc3
{[%clk 0:00:04]} 143. Ra4 {[%clk 0:00:04.3]} 143... Rc2+ {[%clk 0:00:04.4]} 144.
Kf3 {[%clk 0:00:04.5]} 144... Rc1 {[%clk 0:00:05.3]} 145. Rb4 {[%clk 0:00:04.6]}
145... Kf6 {[%clk 0:00:06.2]} 146. Ra4 {[%clk 0:00:04.9]} 146... Kg5 {[%clk
0:00:07.1]} 147. Rb4 {[%clk 0:00:05]} 147... Rf1+ {[%clk 0:00:07.8]} 148. Ke2
{[%clk 0:00:05.4]} 148... Rf4 {[%clk 0:00:08.4]} 149. Rb8 {[%clk 0:00:04.5]}
149... Ra4 {[%clk 0:00:07.6]} 150. Kf3 {[%clk 0:00:04.3]} 150... Ra3+ {[%clk
0:00:07.8]} 151. Ke2 {[%clk 0:00:04.7]} 151... Kg4 {[%clk 0:00:08.7]} 152. Rg8+
{[%clk 0:00:03.7]} 152... Kf4 {[%clk 0:00:09.1]} 153. Rb8 {[%clk 0:00:04.1]}
153... Ra2+ {[%clk 0:00:08.9]} 154. Kf1 {[%clk 0:00:04.1]} 154... Rd2 {[%clk
0:00:05.8]} 155. Rb3 {[%clk 0:00:04.1]} 155... Kg4 {[%clk 0:00:06.2]} 156. Ra3
{[%clk 0:00:04.1]} 156... Rd4 {[%clk 0:00:06.4]} 157. Rb3 {[%clk 0:00:04.4]}
157... Re4 {[%clk 0:00:04.9]} 158. Ra3 {[%clk 0:00:04.4]} 158... Kf4 {[%clk
0:00:04.9]} 159. Rb3 {[%clk 0:00:04.6]} 159... Re3 {[%clk 0:00:05.4]} 160. Rb5
{[%clk 0:00:02.3]} 160... Ra3 {[%clk 0:00:03.5]} 161. Kf2 {[%clk 0:00:01.4]}
161... Ra2+ {[%clk 0:00:04]} 162. Ke1 {[%clk 0:00:01.8]} 162... Ke4 {[%clk
0:00:04.9]} 163. Kf1 {[%clk 0:00:01.8]} 163... Rc2 {[%clk 0:00:04.3]} 164. Ke1
{[%clk 0:00:01.9]} 164... Ke3 {[%clk 0:00:05]} 165. Rb3+ {[%clk 0:00:02]} 165...
Kf4 {[%clk 0:00:05.3]} 166. Rb5 {[%clk 0:00:02.4]} 166... Kg4 {[%clk 0:00:06]}
167. Kf1 {[%clk 0:00:02.9]} 167... Rc3 {[%clk 0:00:04.2]} 168. Kf2 {[%clk
0:00:02.7]} 168... f4 {[%clk 0:00:04.2]} 169. Rb8 {[%clk 0:00:02.9]} 169... Rc2+
{[%clk 0:00:04.6]} 170. Ke1 {[%clk 0:00:03.5]} 170... Kg3 {[%clk 0:00:04.6]}
171. Rg8+ {[%clk 0:00:03]} 171... Kf3 {[%clk 0:00:05]} 172. Rh8 {[%clk
0:00:03.2]} 172... Rc1+ {[%clk 0:00:05]} 173. Kd2 {[%clk 0:00:03.5]} 173... Ra1
{[%clk 0:00:05.5]} 174. Rf8 {[%clk 0:00:02.3]} 174... Kg3 {[%clk 0:00:05.4]}
175. Rg8+ {[%clk 0:00:02.8]} 175... Kf2 {[%clk 0:00:05.8]} 176. Rf8 {[%clk
0:00:03.1]} 176... f3 {[%clk 0:00:06.2]} 177. Rg8 {[%clk 0:00:02.9]} 177... Ra2+
{[%clk 0:00:05.8]} 178. Kd3 {[%clk 0:00:03.5]} 178... Kf1 {[%clk 0:00:05]} 179.
Ke3 {[%clk 0:00:01.5]} 179... f2 {[%clk 0:00:04.9]} 0-1

[Event "Early-Titled-Tuesday-Blitz-November-28-2023"]
[Site "Chess.com"]
[Date "2023.11.28"]
[Round "5"]
[White "VladimirBugayev"]
[Black "GlavkonVVS"]
[Result "0-1"]
[WhiteElo "2325"]
[BlackElo "2545"]
[TimeControl "180+1"]
[EndTime "8:52:36 PST"]
[Termination "GlavkonVVS won by resignation"]

1. e4 {[%clk 0:03:00.9]} 1... Nf6 {[%clk 0:02:59.6]} 2. e5 {[%clk 0:03:00.7]}
2... Nd5 {[%clk 0:02:59.7]} 3. d4 {[%clk 0:03:01.4]} 3... d6 {[%clk 0:02:59.6]}
4. c4 {[%clk 0:03:01.9]} 4... Nb6 {[%clk 0:02:59.3]} 5. f4 {[%clk 0:03:02.6]}
5... dxe5 {[%clk 0:02:58.2]} 6. fxe5 {[%clk 0:03:02.7]} 6... c5 {[%clk
0:02:58.9]} 7. d5 {[%clk 0:02:58.6]} 7... g6 {[%clk 0:02:58.8]} 8. Bf4 {[%clk
0:02:45.5]} 8... Bg7 {[%clk 0:02:58.7]} 9. Bd3 {[%clk 0:02:43]} 9... O-O {[%clk
0:02:41]} 10. Nf3 {[%clk 0:02:37.7]} 10... Bg4 {[%clk 0:02:40.2]} 11. O-O {[%clk
0:02:37.4]} 11... e6 {[%clk 0:02:40.1]} 12. dxe6 {[%clk 0:02:23.9]} 12... fxe6
{[%clk 0:02:36]} 13. Nbd2 {[%clk 0:02:21.1]} 13... Rxf4 {[%clk 0:02:34.4]} 14.
Qc2 {[%clk 0:02:17.1]} 14... Nc6 {[%clk 0:02:33]} 15. h3 {[%clk 0:02:13]} 15...
Nb4 {[%clk 0:02:31.8]} 0-1

[Event "Early-Titled-Tuesday-Blitz-November-28-2023"]
[Site "Chess.com"]
[Date "2023.11.28"]
[Round "5"]
[White "Maxfan2008"]
[Black "tantaan"]
[Result "1-0"]
[WhiteElo "2549"]
[BlackElo "2350"]
[TimeControl "180+1"]
[EndTime "8:53:10 PST"]
[Termination "Maxfan2008 won by resignation"]

1. d4 {[%clk 0:02:56.3]} 1... Nf6 {[%clk 0:02:59.2]} 2. c4 {[%clk 0:02:55.7]}
2... e6 {[%clk 0:02:59.7]} 3. Nc3 {[%clk 0:02:55.8]} 3... Bb4 {[%clk 0:02:59.5]}
4. Nf3 {[%clk 0:02:55.8]} 4... b6 {[%clk 0:02:55.2]} 5. e3 {[%clk 0:02:54.6]}
5... Bb7 {[%clk 0:02:55.2]} 6. Bd3 {[%clk 0:02:54.9]} 6... O-O {[%clk
0:02:53.9]} 7. O-O {[%clk 0:02:54.1]} 7... d5 {[%clk 0:02:54.1]} 8. cxd5 {[%clk
0:02:53.2]} 8... exd5 {[%clk 0:02:53.8]} 9. Ne5 {[%clk 0:02:53.2]} 9... Nbd7
{[%clk 0:02:52.4]} 10. f4 {[%clk 0:02:53.2]} 10... c5 {[%clk 0:02:40]} 11. Bd2
{[%clk 0:02:52.3]} 11... cxd4 {[%clk 0:02:34]} 12. exd4 {[%clk 0:02:50.1]} 12...
Bxc3 {[%clk 0:02:32]} 13. Bxc3 {[%clk 0:02:47.1]} 13... Ne4 {[%clk 0:02:31.9]}
14. Bb4 {[%clk 0:02:15.2]} 14... Re8 {[%clk 0:02:32.1]} 15. Qh5 {[%clk 0:01:58]}
15... Ndf6 {[%clk 0:02:31.4]} 16. Qxf7+ {[%clk 0:01:57]} 16... Kh8 {[%clk
0:02:29.6]} 17. Qxb7 {[%clk 0:01:55.7]} 17... a5 {[%clk 0:02:23.2]} 18. Nf7+
{[%clk 0:01:54.8]} 1-0

[Event "Early-Titled-Tuesday-Blitz-November-28-2023"]
[Site "Chess.com"]
[Date "2023.11.28"]
[Round "5"]
[White "Mihajlovskij"]
[Black "MeesvanOsch"]
[Result "0-1"]
[WhiteElo "2237"]
[BlackElo "2417"]
[TimeControl "180+1"]
[EndTime "8:53:10 PST"]
[Termination "MeesvanOsch won by resignation"]

1. e4 {[%clk 0:03:00.9]} 1... e6 {[%clk 0:02:55.4]} 2. d4 {[%clk 0:03:00.6]}
2... d5 {[%clk 0:02:55]} 3. e5 {[%clk 0:03:00.6]} 3... c5 {[%clk 0:02:54.8]} 4.
c3 {[%clk 0:03:01.1]} 4... Qb6 {[%clk 0:02:54.5]} 5. Nf3 {[%clk 0:03:00.9]} 5...
Bd7 {[%clk 0:02:54.8]} 6. Bd3 {[%clk 0:03:01.5]} 6... Bb5 {[%clk 0:02:54.6]} 7.
dxc5 {[%clk 0:03:02.2]} 7... Bxc5 {[%clk 0:02:47.1]} 8. b4 {[%clk 0:03:02.3]}
8... Be7 {[%clk 0:02:42.7]} 9. Bxb5+ {[%clk 0:02:45.5]} 9... Qxb5 {[%clk
0:02:43.6]} 10. Nd4 {[%clk 0:02:45.8]} 10... Qb6 {[%clk 0:02:37.3]} 11. a4
{[%clk 0:02:42.7]} 11... a5 {[%clk 0:02:35.5]} 12. b5 {[%clk 0:02:36.4]} 12...
Nd7 {[%clk 0:02:34.7]} 13. O-O {[%clk 0:02:35.4]} 13... Nxe5 {[%clk 0:02:28.4]}
14. Re1 {[%clk 0:02:35.1]} 14... Nc4 {[%clk 0:02:27.5]} 15. Qg4 {[%clk
0:02:33.5]} 15... Nf6 {[%clk 0:02:24.7]} 16. Qxg7 {[%clk 0:02:30]} 16... Rg8
{[%clk 0:02:24.6]} 17. Qh6 {[%clk 0:02:30.6]} 17... O-O-O {[%clk 0:02:21.4]} 18.
Qh3 {[%clk 0:02:30.1]} 18... Kb8 {[%clk 0:02:16.4]} 19. Bf4+ {[%clk 0:02:28.7]}
19... Ka8 {[%clk 0:02:13]} 20. Nd2 {[%clk 0:02:27.2]} 20... Nxd2 {[%clk
0:02:11.1]} 21. Bxd2 {[%clk 0:02:28.1]} 21... Ne4 {[%clk 0:02:11.4]} 22. Rxe4
{[%clk 0:02:23.8]} 22... dxe4 {[%clk 0:02:10.1]} 23. c4 {[%clk 0:02:23]} 23...
Qxd4 {[%clk 0:02:05.8]} 0-1

[Event "Early-Titled-Tuesday-Blitz-November-28-2023"]
[Site "Chess.com"]
[Date "2023.11.28"]
[Round "5"]
[White "Ajedrez_con_German"]
[Black "viktorgen2021"]
[Result "1-0"]
[WhiteElo "2615"]
[BlackElo "2468"]
[TimeControl "180+1"]
[EndTime "8:53:49 PST"]
[Termination "Ajedrez_con_German won by resignation"]

1. e4 {[%clk 0:02:44.5]} 1... g6 {[%clk 0:02:59.2]} 2. d4 {[%clk 0:02:42]} 2...
Bg7 {[%clk 0:02:59.1]} 3. Nf3 {[%clk 0:02:37.4]} 3... d6 {[%clk 0:02:57.9]} 4.
c3 {[%clk 0:02:36.9]} 4... Nf6 {[%clk 0:02:56]} 5. Bd3 {[%clk 0:02:36.2]} 5...
Nc6 {[%clk 0:02:55]} 6. O-O {[%clk 0:02:33.4]} 6... e5 {[%clk 0:02:54.5]} 7.
dxe5 {[%clk 0:02:32.1]} 7... dxe5 {[%clk 0:02:51.5]} 8. Qe2 {[%clk 0:02:23.9]}
8... O-O {[%clk 0:02:49.6]} 9. Rd1 {[%clk 0:02:18.2]} 9... Qe7 {[%clk
0:02:43.8]} 10. b3 {[%clk 0:02:18.1]} 10... h6 {[%clk 0:02:41.2]} 11. Ba3 {[%clk
0:02:16.9]} 11... Qe6 {[%clk 0:02:34.2]} 12. Bc4 {[%clk 0:02:13.1]} 12... Qg4
{[%clk 0:02:32.8]} 13. Bxf8 {[%clk 0:02:05.9]} 13... Bxf8 {[%clk 0:02:27.8]} 14.
Nbd2 {[%clk 0:02:05.2]} 14... Bc5 {[%clk 0:02:23.8]} 15. b4 {[%clk 0:01:54]}
15... Bb6 {[%clk 0:02:23.8]} 16. b5 {[%clk 0:01:49.1]} 16... Nh5 {[%clk
0:02:19.2]} 17. h3 {[%clk 0:01:32.3]} 17... Qd7 {[%clk 0:02:15.6]} 18. bxc6
{[%clk 0:01:27.8]} 18... Qxc6 {[%clk 0:02:15.4]} 1-0

[Event "Early-Titled-Tuesday-Blitz-November-28-2023"]
[Site "Chess.com"]
[Date "2023.11.28"]
[Round "5"]
[White "Bauman_Guy"]
[Black "MatyChess1"]
[Result "1-0"]
[WhiteElo "2893"]
[BlackElo "2666"]
[TimeControl "180+1"]
[EndTime "8:54:16 PST"]
[Termination "Bauman_Guy won by resignation"]

1. e4 {[%clk 0:02:59.3]} 1... c6 {[%clk 0:02:59.7]} 2. d4 {[%clk 0:02:59.3]}
2... d5 {[%clk 0:03:00.6]} 3. e5 {[%clk 0:02:59.7]} 3... Bf5 {[%clk 0:02:58.3]}
4. h4 {[%clk 0:02:59.9]} 4... h5 {[%clk 0:02:57.9]} 5. Bd3 {[%clk 0:03:00]} 5...
Bxd3 {[%clk 0:02:57.4]} 6. Qxd3 {[%clk 0:03:00.9]} 6... e6 {[%clk 0:02:57.3]} 7.
Nf3 {[%clk 0:03:00.7]} 7... Qa5+ {[%clk 0:02:55.6]} 8. Nbd2 {[%clk 0:03:00.5]}
8... Nh6 {[%clk 0:02:54.4]} 9. O-O {[%clk 0:02:56.1]} 9... Nf5 {[%clk
0:02:54.7]} 10. a4 {[%clk 0:02:55.6]} 10... Be7 {[%clk 0:02:32.2]} 11. Nb3
{[%clk 0:02:51.5]} 11... Qa6 {[%clk 0:02:32.2]} 12. Qd1 {[%clk 0:02:51.5]} 12...
b6 {[%clk 0:02:31.8]} 13. g3 {[%clk 0:02:46.2]} 13... c5 {[%clk 0:02:30.7]} 14.
a5 {[%clk 0:02:45.3]} 14... Nc6 {[%clk 0:02:27]} 15. axb6 {[%clk 0:02:42.8]}
15... Qxb6 {[%clk 0:02:24.8]} 16. c3 {[%clk 0:02:43]} 16... Rb8 {[%clk
0:02:20.4]} 17. Nxc5 {[%clk 0:02:42.4]} 17... Bxc5 {[%clk 0:02:19.8]} 18. dxc5
{[%clk 0:02:42.9]} 18... Qxc5 {[%clk 0:02:20]} 19. Kg2 {[%clk 0:02:38.5]} 19...
O-O {[%clk 0:02:17.7]} 20. Qd3 {[%clk 0:02:37.2]} 20... Rb3 {[%clk 0:02:09.8]}
21. Qe2 {[%clk 0:02:30.2]} 21... Rfb8 {[%clk 0:02:03.6]} 22. Nd2 {[%clk
0:02:26.5]} 22... R3b7 {[%clk 0:01:57.1]} 23. Qxh5 {[%clk 0:02:26]} 23... Nxe5
{[%clk 0:01:32.2]} 24. Qe2 {[%clk 0:02:25.6]} 24... Qc6 {[%clk 0:01:13.4]} 25.
Qxe5 {[%clk 0:02:21]} 1-0

[Event "Early-Titled-Tuesday-Blitz-November-28-2023"]
[Site "Chess.com"]
[Date "2023.11.28"]
[Round "5"]
[White "nicolochessit"]
[Black "PabloZarnicki"]
[Result "0-1"]
[WhiteElo "2351"]
[BlackElo "2550"]
[TimeControl "180+1"]
[EndTime "8:54:29 PST"]
[Termination "PabloZarnicki won by resignation"]

1. e4 {[%clk 0:02:59]} 1... c6 {[%clk 0:02:54.3]} 2. d4 {[%clk 0:02:58.7]} 2...
a6 {[%clk 0:02:54.2]} 3. Nc3 {[%clk 0:02:49.4]} 3... d5 {[%clk 0:02:52.6]} 4. a3
{[%clk 0:02:27.5]} 4... dxe4 {[%clk 0:02:43.5]} 5. Nxe4 {[%clk 0:02:28.4]} 5...
Nf6 {[%clk 0:02:43.6]} 6. Nxf6+ {[%clk 0:02:28.4]} 6... exf6 {[%clk 0:02:44.5]}
7. c3 {[%clk 0:02:26]} 7... Bd6 {[%clk 0:02:43.3]} 8. Bd3 {[%clk 0:02:26.2]}
8... O-O {[%clk 0:02:43.1]} 9. Qc2 {[%clk 0:02:26.5]} 9... Re8+ {[%clk
0:02:41.7]} 10. Ne2 {[%clk 0:02:26]} 10... h6 {[%clk 0:02:39.9]} 11. Be3 {[%clk
0:02:20.6]} 11... Nd7 {[%clk 0:02:39]} 12. O-O-O {[%clk 0:02:20.1]} 12... b5
{[%clk 0:02:39.3]} 13. Nf4 {[%clk 0:02:19.2]} 13... Nb6 {[%clk 0:02:38.8]} 14.
Rde1 {[%clk 0:02:13.4]} 14... Nc4 {[%clk 0:02:24.6]} 15. Bd2 {[%clk 0:01:41.2]}
15... Bd7 {[%clk 0:02:15]} 16. g3 {[%clk 0:01:32.6]} 16... Qc7 {[%clk
0:02:09.3]} 17. Bxc4 {[%clk 0:01:26.2]} 17... bxc4 {[%clk 0:02:08.9]} 18. Qd1
{[%clk 0:01:15.9]} 18... Reb8 {[%clk 0:02:07.1]} 19. Nh5 {[%clk 0:01:06.6]}
19... Qa5 {[%clk 0:02:01.9]} 20. Qc2 {[%clk 0:01:04.8]} 20... Qxh5 {[%clk
0:02:00]} 0-1